[Event "*** Titled Tuesday Blitz"]
[Site "Chess.com"]
[Date "2020.03.03"]
[Round "4"]
[White "Mbneu"]
[Black "Astaneh"]
[Result "0-1"]
[WhiteElo "2216"]
[BlackElo "2569"]
[TimeControl "180+1"]
[EndTime "13:38:50 PST"]
[Termination "Astaneh won by resignation"]

1. d4 {[%clk 0:03:00.9]} 1... c5 {[%clk 0:02:07.6]} 2. d5 {[%clk 0:02:59.2]}
2... e5 {[%clk 0:02:07]} 3. g3 {[%clk 0:02:57.4]} 3... g6 {[%clk 0:02:04.5]} 4.
e4 {[%clk 0:02:55.3]} 4... d6 {[%clk 0:02:05]} 5. Bg2 {[%clk 0:02:55.3]} 5...
Bg7 {[%clk 0:02:05.6]} 6. Ne2 {[%clk 0:02:54.5]} 6... a6 {[%clk 0:02:05.8]} 7.
a4 {[%clk 0:02:53.5]} 7... Ne7 {[%clk 0:02:04.2]} 8. O-O {[%clk 0:02:52.6]} 8...
Nd7 {[%clk 0:02:04.3]} 9. Nd2 {[%clk 0:02:51.5]} 9... O-O {[%clk 0:02:04.8]} 10.
f4 {[%clk 0:02:50.6]} 10... f5 {[%clk 0:02:05.4]} 11. fxe5 {[%clk 0:02:42.7]}
11... Nxe5 {[%clk 0:02:05.6]} 12. Nf4 {[%clk 0:02:42.9]} 12... Ng4 {[%clk
0:02:03.9]} 13. Nf3 {[%clk 0:02:42.2]} 13... fxe4 {[%clk 0:02:04.4]} 14. Ng5
{[%clk 0:02:41.5]} 14... Bd4+ {[%clk 0:02:05]} 15. Kh1 {[%clk 0:02:40.6]} 15...
Nf2+ {[%clk 0:02:05.3]} 16. Rxf2 {[%clk 0:02:40.4]} 16... Bxf2 {[%clk
0:02:06.2]} 17. Nge6 {[%clk 0:02:25.5]} 17... Bxe6 {[%clk 0:02:06.3]} 18. Nxe6
{[%clk 0:02:25.6]} 18... Qd7 {[%clk 0:02:04.7]} 19. Nxf8 {[%clk 0:02:04.6]}
19... Rxf8 {[%clk 0:02:05.6]} 20. Bxe4 {[%clk 0:02:04.5]} 20... Bxg3 {[%clk
0:01:56.3]} 21. Bg2 {[%clk 0:01:31.5]} 21... Be5 {[%clk 0:01:54.5]} 22. Bh6
{[%clk 0:01:27.9]} 22... Rf7 {[%clk 0:01:50.9]} 23. c3 {[%clk 0:01:25.9]} 23...
Nf5 {[%clk 0:01:50.9]} 24. Bg5 {[%clk 0:01:23.3]} 24... h6 {[%clk 0:01:50.7]}
25. Bd2 {[%clk 0:01:14.9]} 25... Qe7 {[%clk 0:01:51.2]} 26. Qg4 {[%clk
0:01:13.2]} 26... Qh4 {[%clk 0:01:49.3]} 27. Qxh4 {[%clk 0:00:52.4]} 27... Nxh4
{[%clk 0:01:49]} 28. Rf1 {[%clk 0:00:47.8]} 28... Nxg2 {[%clk 0:01:47.5]} 29.
Rxf7 {[%clk 0:00:43.4]} 29... Kxf7 {[%clk 0:01:46.4]} 30. Kxg2 {[%clk
0:00:44.3]} 30... g5 {[%clk 0:01:44.6]} 31. h3 {[%clk 0:00:43.8]} 31... Kg6
{[%clk 0:01:45.1]} 32. Kf3 {[%clk 0:00:41.7]} 32... Kf5 {[%clk 0:01:45.5]} 33.
b4 {[%clk 0:00:39.6]} 33... cxb4 {[%clk 0:01:42.5]} 34. cxb4 {[%clk 0:00:39]}
34... b5 {[%clk 0:01:43.1]} 35. axb5 {[%clk 0:00:36.7]} 35... axb5 {[%clk
0:01:44]} 36. Be1 {[%clk 0:00:29.7]} 36... h5 {[%clk 0:01:44.2]} 0-1

[Event "*** Titled Tuesday Blitz"]
[Site "Chess.com"]
[Date "2020.03.03"]
[Round "4"]
[White "Rhinos1"]
[Black "adricalderon8"]
[Result "0-1"]
[WhiteElo "2171"]
[BlackElo "2429"]
[TimeControl "180+1"]
[EndTime "13:38:56 PST"]
[Termination "adricalderon8 won by resignation"]

1. Nf3 {[%clk 0:03:00.9]} 1... Nf6 {[%clk 0:02:59.3]} 2. b3 {[%clk 0:02:47.2]}
2... d6 {[%clk 0:02:56.6]} 3. d4 {[%clk 0:02:43.3]} 3... e6 {[%clk 0:02:57.1]}
4. Bb2 {[%clk 0:02:42.5]} 4... Be7 {[%clk 0:02:56.3]} 5. g3 {[%clk 0:02:42.7]}
5... O-O {[%clk 0:02:56.4]} 6. Bg2 {[%clk 0:02:43.3]} 6... Re8 {[%clk
0:02:53.5]} 7. O-O {[%clk 0:02:43.7]} 7... Bf8 {[%clk 0:02:53.7]} 8. c4 {[%clk
0:02:41.7]} 8... d5 {[%clk 0:02:50.2]} 9. Nc3 {[%clk 0:02:35.5]} 9... c6 {[%clk
0:02:49.8]} 10. Rc1 {[%clk 0:02:34.3]} 10... Nbd7 {[%clk 0:02:47.9]} 11. Qc2
{[%clk 0:02:16.7]} 11... b6 {[%clk 0:02:45.4]} 12. e4 {[%clk 0:02:10.6]} 12...
dxe4 {[%clk 0:02:43.5]} 13. Nxe4 {[%clk 0:02:10.5]} 13... Bb7 {[%clk 0:02:44.3]}
14. Rfd1 {[%clk 0:02:09.2]} 14... Qc7 {[%clk 0:02:42.2]} 15. Ne5 {[%clk
0:01:38.7]} 15... Nxe5 {[%clk 0:02:41.1]} 16. dxe5 {[%clk 0:01:38.3]} 16... Nxe4
{[%clk 0:02:41.8]} 17. Bxe4 {[%clk 0:01:21.7]} 17... g6 {[%clk 0:02:40.5]} 18.
h4 {[%clk 0:01:22.2]} 18... Rad8 {[%clk 0:02:34.9]} 19. Re1 {[%clk 0:01:19.6]}
19... c5 {[%clk 0:02:35]} 20. h5 {[%clk 0:01:16.9]} 20... Bxe4 {[%clk
0:02:33.2]} 21. Rxe4 {[%clk 0:01:15.1]} 21... Bh6 {[%clk 0:02:29.7]} 22. Rd1
{[%clk 0:01:03.1]} 22... Rxd1+ {[%clk 0:02:28]} 23. Qxd1 {[%clk 0:01:04]} 23...
Rd8 {[%clk 0:02:24]} 24. Qf3 {[%clk 0:01:04]} 24... Qd7 {[%clk 0:02:22.4]} 25.
Kg2 {[%clk 0:00:48.6]} 25... Qd3 {[%clk 0:02:20.3]} 26. Qg4 {[%clk 0:00:37.8]}
26... Qd1 {[%clk 0:02:20.2]} 27. hxg6 {[%clk 0:00:22.8]} 27... hxg6 {[%clk
0:02:17.6]} 28. Qh4 {[%clk 0:00:22.1]} 28... Kg7 {[%clk 0:02:17.3]} 29. Re1
{[%clk 0:00:20.6]} 29... Qd7 {[%clk 0:02:12.7]} 30. Qf6+ {[%clk 0:00:20]} 30...
Kg8 {[%clk 0:02:12.8]} 31. Rh1 {[%clk 0:00:20.4]} 31... Bg7 {[%clk 0:02:13.2]}
32. Qh4 {[%clk 0:00:20.7]} 32... Qc6+ {[%clk 0:02:11.7]} 33. Kh2 {[%clk
0:00:19.1]} 33... Rd2 {[%clk 0:02:10.9]} 34. Bc1 {[%clk 0:00:15.7]} 34... Rxf2+
{[%clk 0:02:09.9]} 35. Kh3 {[%clk 0:00:16.3]} 35... Qxh1+ {[%clk 0:02:08.1]} 36.
Kg4 {[%clk 0:00:15.9]} 36... Qxh4+ {[%clk 0:02:08.3]} 0-1

[Event "*** Titled Tuesday Blitz"]
[Site "Chess.com"]
[Date "2020.03.03"]
[Round "4"]
[White "Alexander_Moskalenko"]
[Black "malandragem"]
[Result "0-1"]
[WhiteElo "2840"]
[BlackElo "2630"]
[TimeControl "180+1"]
[EndTime "13:39:00 PST"]
[Termination "malandragem won by resignation"]

1. d4 {[%clk 0:03:00.9]} 1... Nf6 {[%clk 0:03:00.2]} 2. c4 {[%clk 0:03:00]} 2...
g6 {[%clk 0:03:00.1]} 3. Nf3 {[%clk 0:02:56.3]} 3... Bg7 {[%clk 0:02:59.7]} 4.
g3 {[%clk 0:02:57.2]} 4... d6 {[%clk 0:02:59.3]} 5. Bg2 {[%clk 0:02:56.9]} 5...
O-O {[%clk 0:02:59.8]} 6. Nc3 {[%clk 0:02:57]} 6... Nc6 {[%clk 0:03:00.1]} 7.
O-O {[%clk 0:02:55.6]} 7... e5 {[%clk 0:02:59.3]} 8. d5 {[%clk 0:02:49.5]} 8...
Nb8 {[%clk 0:02:58.1]} 9. e4 {[%clk 0:02:50.1]} 9... a5 {[%clk 0:02:56]} 10. Ne1
{[%clk 0:02:50.1]} 10... Na6 {[%clk 0:02:54.4]} 11. Nd3 {[%clk 0:02:50.7]} 11...
Nd7 {[%clk 0:02:53.4]} 12. Be3 {[%clk 0:02:49.3]} 12... f5 {[%clk 0:02:52.1]}
13. Qd2 {[%clk 0:02:49.8]} 13... Nac5 {[%clk 0:02:26.3]} 14. Nxc5 {[%clk
0:02:38.3]} 14... Nxc5 {[%clk 0:02:27.2]} 15. exf5 {[%clk 0:02:38.3]} 15... gxf5
{[%clk 0:02:23.8]} 16. f4 {[%clk 0:02:38.4]} 16... e4 {[%clk 0:02:20.4]} 17. Ne2
{[%clk 0:02:35.3]} 17... Bd7 {[%clk 0:02:20.7]} 18. Bd4 {[%clk 0:02:34.8]} 18...
Qe7 {[%clk 0:02:14.9]} 19. Bxg7 {[%clk 0:02:32.4]} 19... Qxg7 {[%clk 0:02:15.8]}
20. Qd4 {[%clk 0:02:25.7]} 20... h5 {[%clk 0:02:15.9]} 21. Qxg7+ {[%clk
0:02:21.5]} 21... Kxg7 {[%clk 0:02:16.8]} 22. Nd4 {[%clk 0:02:21.5]} 22... h4
{[%clk 0:02:13.3]} 23. Bh3 {[%clk 0:02:17.4]} 23... Kf6 {[%clk 0:02:09.4]} 24.
a3 {[%clk 0:01:46]} 24... a4 {[%clk 0:02:05.5]} 25. Rae1 {[%clk 0:01:39.4]}
25... Rh8 {[%clk 0:02:04.6]} 26. Bg2 {[%clk 0:01:36.7]} 26... hxg3 {[%clk
0:01:45.1]} 27. hxg3 {[%clk 0:01:37.6]} 27... Rag8 {[%clk 0:01:45.5]} 28. Re3
{[%clk 0:01:37]} 28... Nd3 {[%clk 0:01:39.8]} 29. Rb1 {[%clk 0:01:28.4]} 29...
Rh7 {[%clk 0:01:38.2]} 30. Ne2 {[%clk 0:01:24.8]} 30... Nc5 {[%clk 0:01:28.4]}
31. Rd1 {[%clk 0:01:17.6]} 31... Be8 {[%clk 0:01:26.9]} 32. Nd4 {[%clk
0:01:13.5]} 32... Bh5 {[%clk 0:01:26.6]} 33. Rd2 {[%clk 0:01:14]} 33... Rhg7
{[%clk 0:01:26.7]} 34. Kf1 {[%clk 0:01:03.6]} 34... Rxg3 {[%clk 0:01:21.4]} 35.
Rxg3 {[%clk 0:01:03.7]} 35... Rxg3 {[%clk 0:01:22.3]} 36. Kf2 {[%clk 0:01:04.6]}
36... e3+ {[%clk 0:01:13.6]} 37. Kxg3 {[%clk 0:01:03.9]} 37... exd2 {[%clk
0:01:13.9]} 38. Bf3 {[%clk 0:01:04.8]} 38... Bxf3 {[%clk 0:01:13.2]} 39. Nxf3
{[%clk 0:01:04.1]} 39... d1=Q {[%clk 0:01:13.5]} 0-1

[Event "*** Titled Tuesday Blitz"]
[Site "Chess.com"]
[Date "2020.03.03"]
[Round "4"]
[White "Alopekos"]
[Black "szefru"]
[Result "1-0"]
[WhiteElo "2429"]
[BlackElo "2166"]
[TimeControl "180+1"]
[EndTime "13:39:04 PST"]
[Termination "Alopekos won by checkmate"]

1. e4 {[%clk 0:02:28.2]} 1... e5 {[%clk 0:02:58.3]} 2. Nf3 {[%clk 0:02:23.1]}
2... Nc6 {[%clk 0:02:58.5]} 3. Bb5 {[%clk 0:02:21.7]} 3... a6 {[%clk 0:02:58.5]}
4. Ba4 {[%clk 0:02:21.3]} 4... Nf6 {[%clk 0:02:58.1]} 5. O-O {[%clk 0:02:20.9]}
5... b5 {[%clk 0:02:58.5]} 6. Bb3 {[%clk 0:02:21.2]} 6... Be7 {[%clk 0:02:59]}
7. a4 {[%clk 0:02:21.2]} 7... b4 {[%clk 0:02:58.2]} 8. c3 {[%clk 0:02:18.5]}
8... a5 {[%clk 0:02:57.2]} 9. d4 {[%clk 0:02:16.3]} 9... d6 {[%clk 0:02:51.1]}
10. d5 {[%clk 0:02:11.5]} 10... Nb8 {[%clk 0:02:50.5]} 11. cxb4 {[%clk
0:02:10.2]} 11... axb4 {[%clk 0:02:50.7]} 12. Re1 {[%clk 0:02:05]} 12... Bg4
{[%clk 0:02:49.6]} 13. h3 {[%clk 0:02:01.8]} 13... Bh5 {[%clk 0:02:48.5]} 14.
Nbd2 {[%clk 0:01:57.6]} 14... Nbd7 {[%clk 0:02:47.3]} 15. a5 {[%clk 0:01:42.1]}
15... O-O {[%clk 0:02:43.4]} 16. Nf1 {[%clk 0:01:39.7]} 16... Nc5 {[%clk
0:02:41]} 17. Bc2 {[%clk 0:01:37.3]} 17... Qb8 {[%clk 0:02:39.2]} 18. Ng3 {[%clk
0:01:34.3]} 18... Bg6 {[%clk 0:02:38]} 19. Nh4 {[%clk 0:01:23.5]} 19... Qb5
{[%clk 0:02:37]} 20. Nhf5 {[%clk 0:01:18.5]} 20... Rfe8 {[%clk 0:02:33.1]} 21.
Nxe7+ {[%clk 0:00:45]} 21... Rxe7 {[%clk 0:02:32]} 22. Bg5 {[%clk 0:00:44.3]}
22... Rxa5 {[%clk 0:02:30.2]} 23. Qf3 {[%clk 0:00:41.5]} 23... c6 {[%clk
0:02:06.4]} 24. Bxf6 {[%clk 0:00:27.2]} 24... gxf6 {[%clk 0:02:05.5]} 25. Qxf6
{[%clk 0:00:28.1]} 25... Rea7 {[%clk 0:02:03.7]} 26. Rxa5 {[%clk 0:00:23.2]}
26... Rxa5 {[%clk 0:02:01.2]} 27. h4 {[%clk 0:00:21.6]} 27... cxd5 {[%clk
0:01:57.3]} 28. h5 {[%clk 0:00:18.4]} 28... Bxe4 {[%clk 0:01:56.9]} 29. Bxe4
{[%clk 0:00:18.1]} 29... Nxe4 {[%clk 0:01:43.8]} 30. Qd8+ {[%clk 0:00:17.5]}
30... Kg7 {[%clk 0:01:40.6]} 31. Nf5# {[%clk 0:00:17.5]} 1-0

[Event "*** Titled Tuesday Blitz"]
[Site "Chess.com"]
[Date "2020.03.03"]
[Round "4"]
[White "JustDazzled"]
[Black "aa175"]
[Result "0-1"]
[WhiteElo "1948"]
[BlackElo "2252"]
[TimeControl "180+1"]
[EndTime "13:39:06 PST"]
[Termination "aa175 won by resignation"]

1. c4 {[%clk 0:01:45.9]} 1... Nf6 {[%clk 0:02:59.1]} 2. g3 {[%clk 0:01:46.4]}
2... g6 {[%clk 0:02:58.2]} 3. Bg2 {[%clk 0:01:46.4]} 3... c6 {[%clk 0:02:58.4]}
4. Nf3 {[%clk 0:01:45.2]} 4... d5 {[%clk 0:02:58.9]} 5. b3 {[%clk 0:01:45.6]}
5... Bg7 {[%clk 0:02:58.9]} 6. Bb2 {[%clk 0:01:45.7]} 6... O-O {[%clk
0:02:59.4]} 7. O-O {[%clk 0:01:46.2]} 7... Re8 {[%clk 0:02:54.1]} 8. d3 {[%clk
0:01:42.5]} 8... Nbd7 {[%clk 0:02:54.1]} 9. Nbd2 {[%clk 0:01:42]} 9... e5 {[%clk
0:02:54.4]} 10. Qc2 {[%clk 0:01:35.7]} 10... a5 {[%clk 0:02:53.5]} 11. e4 {[%clk
0:01:30.7]} 11... d4 {[%clk 0:02:43.3]} 12. a3 {[%clk 0:01:29.5]} 12... c5
{[%clk 0:02:40.1]} 13. Ne1 {[%clk 0:01:16.3]} 13... b6 {[%clk 0:02:41]} 14. h3
{[%clk 0:01:13.8]} 14... Nf8 {[%clk 0:02:39.9]} 15. f4 {[%clk 0:01:13.4]} 15...
Nh5 {[%clk 0:02:37.2]} 16. f5 {[%clk 0:00:47]} 16... Nxg3 {[%clk 0:02:36.7]} 17.
Rf3 {[%clk 0:00:46.1]} 17... Ne2+ {[%clk 0:02:35.6]} 18. Kf2 {[%clk 0:00:44.1]}
18... Nf4 {[%clk 0:02:34.4]} 19. Nf1 {[%clk 0:00:41]} 19... gxf5 {[%clk
0:02:31.3]} 20. exf5 {[%clk 0:00:31.7]} 20... Bxf5 {[%clk 0:02:32.2]} 21. Rxf4
{[%clk 0:00:32]} 21... exf4 {[%clk 0:02:31.2]} 22. Bxa8 {[%clk 0:00:31.9]} 22...
Qxa8 {[%clk 0:02:30]} 23. Nf3 {[%clk 0:00:32.4]} 23... Re3 {[%clk 0:02:27.3]}
24. Nxe3 {[%clk 0:00:30.7]} 24... fxe3+ {[%clk 0:02:27.4]} 25. Ke2 {[%clk
0:00:30.8]} 25... Bxh3 {[%clk 0:02:26.1]} 26. Rg1 {[%clk 0:00:29]} 26... Ng6
{[%clk 0:02:24.7]} 27. Ng5 {[%clk 0:00:20.3]} 27... Nf4+ {[%clk 0:02:22.7]} 28.
Ke1 {[%clk 0:00:20.8]} 28... Bf5 {[%clk 0:02:10.7]} 29. Ne4 {[%clk 0:00:17.3]}
29... Nxd3+ {[%clk 0:02:08.2]} 30. Qxd3 {[%clk 0:00:16.5]} 30... Bxe4 {[%clk
0:02:09.1]} 31. Qe2 {[%clk 0:00:16.6]} 31... Bf3 {[%clk 0:02:06.6]} 32. Qh2
{[%clk 0:00:14.9]} 32... Be4 {[%clk 0:01:47.7]} 33. Qg3 {[%clk 0:00:11.1]} 33...
Bg6 {[%clk 0:01:47.5]} 34. Bc1 {[%clk 0:00:07.8]} 34... Qe4 {[%clk 0:01:46.8]}
35. Qb8+ {[%clk 0:00:06.3]} 35... Bf8 {[%clk 0:01:46.1]} 0-1

[Event "*** Titled Tuesday Blitz"]
[Site "Chess.com"]
[Date "2020.03.03"]
[Round "4"]
[White "superstructure"]
[Black "mitraasz"]
[Result "1-0"]
[WhiteElo "2428"]
[BlackElo "2159"]
[TimeControl "180+1"]
[EndTime "13:39:07 PST"]
[Termination "superstructure won by resignation"]

1. e4 {[%clk 0:02:59.1]} 1... c5 {[%clk 0:02:59.7]} 2. c3 {[%clk 0:02:55.5]}
2... d6 {[%clk 0:02:59.5]} 3. d4 {[%clk 0:02:54.2]} 3... Nf6 {[%clk 0:02:59.8]}
4. Bd3 {[%clk 0:02:51.5]} 4... Nc6 {[%clk 0:02:59.8]} 5. Ne2 {[%clk 0:02:48.3]}
5... g6 {[%clk 0:02:59.9]} 6. Nd2 {[%clk 0:02:42]} 6... Bg7 {[%clk 0:03:00.1]}
7. O-O {[%clk 0:02:36.9]} 7... O-O {[%clk 0:03:00.1]} 8. h3 {[%clk 0:02:34.5]}
8... cxd4 {[%clk 0:02:55.2]} 9. cxd4 {[%clk 0:02:35.4]} 9... b6 {[%clk
0:02:55.5]} 10. Nf3 {[%clk 0:02:17.3]} 10... Bb7 {[%clk 0:02:53.8]} 11. Nc3
{[%clk 0:02:13.2]} 11... Rc8 {[%clk 0:02:51.3]} 12. Be3 {[%clk 0:02:10]} 12...
Nb4 {[%clk 0:02:48.2]} 13. Bb1 {[%clk 0:02:08.8]} 13... Ba6 {[%clk 0:02:34]} 14.
Re1 {[%clk 0:02:07.4]} 14... Nd7 {[%clk 0:02:32.4]} 15. a3 {[%clk 0:02:03.2]}
15... Nc6 {[%clk 0:02:32.6]} 16. Qd2 {[%clk 0:02:01.3]} 16... Na5 {[%clk
0:02:31.8]} 17. Ba2 {[%clk 0:01:56.4]} 17... Nc4 {[%clk 0:02:21.5]} 18. Bxc4
{[%clk 0:01:53.3]} 18... Bxc4 {[%clk 0:02:22.2]} 19. Bh6 {[%clk 0:01:50.7]}
19... b5 {[%clk 0:02:12.6]} 20. Bxg7 {[%clk 0:01:44]} 20... Kxg7 {[%clk
0:02:12.7]} 21. Rab1 {[%clk 0:01:43]} 21... Qc7 {[%clk 0:01:39.9]} 22. Rec1
{[%clk 0:01:17.9]} 22... b4 {[%clk 0:01:27.2]} 23. Nd5 {[%clk 0:01:16.6]} 23...
Qd8 {[%clk 0:01:16.8]} 24. Nxb4 {[%clk 0:01:11.7]} 24... Nb6 {[%clk 0:01:14.6]}
25. b3 {[%clk 0:01:07.9]} 25... Bb5 {[%clk 0:01:14.3]} 26. a4 {[%clk 0:01:07.2]}
26... Bd7 {[%clk 0:01:13.2]} 27. d5 {[%clk 0:01:04.5]} 27... Rxc1+ {[%clk
0:01:06.6]} 28. Rxc1 {[%clk 0:01:05.4]} 28... Qb8 {[%clk 0:01:06.5]} 29. Nd4
{[%clk 0:01:02.7]} 29... Rc8 {[%clk 0:01:04.6]} 30. Nbc6 {[%clk 0:01:02.3]}
30... Bxc6 {[%clk 0:01:04.1]} 31. Nxc6 {[%clk 0:01:03.2]} 31... Qc7 {[%clk
0:01:02.5]} 32. Qd4+ {[%clk 0:01:01.6]} 32... Kg8 {[%clk 0:01:01.4]} 33. a5
{[%clk 0:00:57.9]} 1-0

[Event "*** Titled Tuesday Blitz"]
[Site "Chess.com"]
[Date "2020.03.03"]
[Round "4"]
[White "RitvarsReimanis"]
[Black "Indianlad"]
[Result "0-1"]
[WhiteElo "2626"]
[BlackElo "2932"]
[TimeControl "180+1"]
[EndTime "13:39:08 PST"]
[Termination "Indianlad won by resignation"]

1. d4 {[%clk 0:03:00.9]} 1... Nf6 {[%clk 0:03:00.2]} 2. c4 {[%clk 0:03:01.2]}
2... g6 {[%clk 0:03:00.7]} 3. Nc3 {[%clk 0:03:01.1]} 3... Bg7 {[%clk 0:03:01.4]}
4. e4 {[%clk 0:03:01.1]} 4... O-O {[%clk 0:03:02]} 5. Nf3 {[%clk 0:03:01.5]}
5... d6 {[%clk 0:03:01.7]} 6. Be2 {[%clk 0:03:02]} 6... c5 {[%clk 0:03:02.2]} 7.
O-O {[%clk 0:02:58.9]} 7... Bg4 {[%clk 0:03:02.4]} 8. Be3 {[%clk 0:02:44.1]}
8... Nfd7 {[%clk 0:03:02.2]} 9. Ne1 {[%clk 0:02:37.4]} 9... Bxe2 {[%clk
0:02:59.4]} 10. Nxe2 {[%clk 0:02:38.3]} 10... Nc6 {[%clk 0:02:59.2]} 11. Rb1
{[%clk 0:02:28.8]} 11... a6 {[%clk 0:02:54.7]} 12. b4 {[%clk 0:02:06.3]} 12...
cxd4 {[%clk 0:02:35.5]} 13. Nxd4 {[%clk 0:02:05.1]} 13... Nce5 {[%clk
0:02:35.3]} 14. Rc1 {[%clk 0:01:58.9]} 14... Rc8 {[%clk 0:02:35.3]} 15. Qe2
{[%clk 0:01:55.8]} 15... Qc7 {[%clk 0:02:27.9]} 16. c5 {[%clk 0:01:44.3]} 16...
dxc5 {[%clk 0:02:27.6]} 17. bxc5 {[%clk 0:01:45.2]} 17... Nf6 {[%clk 0:02:09.3]}
18. c6 {[%clk 0:01:25.6]} 18... bxc6 {[%clk 0:01:56.9]} 19. Qxa6 {[%clk
0:01:06.3]} 19... Neg4 {[%clk 0:01:41.9]} 20. Nef3 {[%clk 0:00:53]} 20... Nxe3
{[%clk 0:01:42]} 21. fxe3 {[%clk 0:00:49.2]} 21... c5 {[%clk 0:01:39.5]} 22. e5
{[%clk 0:00:45.3]} 22... Ng4 {[%clk 0:01:38.5]} 23. e6 {[%clk 0:00:44.5]} 23...
f5 {[%clk 0:01:34.6]} 24. Nb3 {[%clk 0:00:31.2]} 24... c4 {[%clk 0:01:33]} 25.
Rfe1 {[%clk 0:00:27.2]} 25... Bh6 {[%clk 0:01:32.1]} 26. Rc3 {[%clk 0:00:23.6]}
26... Bxe3+ {[%clk 0:01:31.1]} 27. Rcxe3 {[%clk 0:00:19.7]} 27... Nxe3 {[%clk
0:01:32]} 28. Rxe3 {[%clk 0:00:20.6]} 28... cxb3 {[%clk 0:01:32.1]} 29. axb3
{[%clk 0:00:21.5]} 29... Qc5 {[%clk 0:01:27.5]} 30. Qc4 {[%clk 0:00:16.8]} 30...
Qxe3+ {[%clk 0:01:27.1]} 0-1

[Event "*** Titled Tuesday Blitz"]
[Site "Chess.com"]
[Date "2020.03.03"]
[Round "4"]
[White "Kislov_Oleg"]
[Black "vlad_Sid"]
[Result "1-0"]
[WhiteElo "2550"]
[BlackElo "2688"]
[TimeControl "180+1"]
[EndTime "13:39:16 PST"]
[Termination "Kislov_Oleg won by resignation"]

1. e4 {[%clk 0:02:58.3]} 1... c6 {[%clk 0:02:59.1]} 2. d4 {[%clk 0:02:58.1]}
2... d5 {[%clk 0:02:58.3]} 3. Nc3 {[%clk 0:02:59]} 3... dxe4 {[%clk 0:02:58.3]}
4. Nxe4 {[%clk 0:02:59.6]} 4... Nf6 {[%clk 0:02:58.8]} 5. Nxf6+ {[%clk
0:02:59.6]} 5... exf6 {[%clk 0:02:59.7]} 6. c3 {[%clk 0:03:00]} 6... Bd6 {[%clk
0:03:00.2]} 7. Bd3 {[%clk 0:02:59.4]} 7... O-O {[%clk 0:03:01.1]} 8. Qc2 {[%clk
0:02:58.8]} 8... Re8+ {[%clk 0:03:01.9]} 9. Ne2 {[%clk 0:02:58.6]} 9... h5
{[%clk 0:03:02.8]} 10. Be3 {[%clk 0:02:55.3]} 10... Nd7 {[%clk 0:03:01.7]} 11.
O-O-O {[%clk 0:02:54]} 11... Nf8 {[%clk 0:03:01.9]} 12. Kb1 {[%clk 0:02:37.9]}
12... Be6 {[%clk 0:03:01.5]} 13. Nc1 {[%clk 0:02:35]} 13... a5 {[%clk
0:02:56.9]} 14. h3 {[%clk 0:02:24.5]} 14... Bd5 {[%clk 0:02:55.5]} 15. Rhg1
{[%clk 0:02:18.5]} 15... b5 {[%clk 0:02:54]} 16. g4 {[%clk 0:02:15.6]} 16...
hxg4 {[%clk 0:02:48.7]} 17. Rxg4 {[%clk 0:02:09.7]} 17... Bf3 {[%clk 0:02:48.3]}
18. Rdg1 {[%clk 0:02:08.8]} 18... Bxg4 {[%clk 0:02:46.5]} 19. Rxg4 {[%clk
0:02:09.7]} 19... Ne6 {[%clk 0:02:14.6]} 20. Bf5 {[%clk 0:01:49.5]} 20... Qc7
{[%clk 0:02:12.3]} 21. Bh6 {[%clk 0:01:43.9]} 21... Bf4 {[%clk 0:02:08.4]} 22.
Bxe6 {[%clk 0:01:36.9]} 22... Bxh6 {[%clk 0:02:07.1]} 23. Qg6 {[%clk 0:01:28.5]}
23... fxe6 {[%clk 0:02:05]} 24. Qxh6 {[%clk 0:01:28.8]} 24... Qf7 {[%clk
0:02:00.7]} 25. Nd3 {[%clk 0:01:27.8]} 25... e5 {[%clk 0:01:56.4]} 26. dxe5
{[%clk 0:01:24.3]} 26... Rad8 {[%clk 0:01:53.5]} 27. exf6 {[%clk 0:01:18.1]}
27... Rd7 {[%clk 0:01:42]} 28. Rxg7+ {[%clk 0:01:14]} 28... Qxg7 {[%clk
0:01:41.8]} 29. fxg7 {[%clk 0:01:13.6]} 29... Rxg7 {[%clk 0:01:41.7]} 30. Qxc6
{[%clk 0:01:10]} 30... Rg1+ {[%clk 0:01:41.5]} 31. Kc2 {[%clk 0:01:08.9]} 31...
Re2+ {[%clk 0:01:39.2]} 32. Kb3 {[%clk 0:01:08.8]} 32... a4+ {[%clk 0:01:39]}
33. Ka3 {[%clk 0:01:08.7]} 33... Re7 {[%clk 0:01:33]} 34. Qxb5 {[%clk
0:01:07.1]} 34... Reg7 {[%clk 0:01:33]} 35. Qd5+ {[%clk 0:01:06.8]} 35... Kh7
{[%clk 0:01:30.9]} 36. f4 {[%clk 0:01:04.2]} 36... R1g3 {[%clk 0:01:29.5]} 37.
f5 {[%clk 0:01:02.6]} 37... Rxh3 {[%clk 0:01:23.1]} 38. f6 {[%clk 0:01:02.4]}
38... Rgg3 {[%clk 0:01:23]} 39. Qf5+ {[%clk 0:01:00.6]} 39... Kg8 {[%clk
0:01:21.8]} 40. f7+ {[%clk 0:01:00.4]} 40... Kf8 {[%clk 0:01:22]} 41. Ne5 {[%clk
0:01:00.3]} 41... Rxc3+ {[%clk 0:01:20.4]} 42. bxc3 {[%clk 0:00:59.8]} 42...
Rxc3+ {[%clk 0:01:21.3]} 43. Kxa4 {[%clk 0:00:57.9]} 43... Ra3+ {[%clk 0:01:05]}
44. Kxa3 {[%clk 0:00:57.4]} 1-0

[Event "*** Titled Tuesday Blitz"]
[Site "Chess.com"]
[Date "2020.03.03"]
[Round "4"]
[White "PowerThinking2650"]
[Black "kinga2008"]
[Result "1-0"]
[WhiteElo "2397"]
[BlackElo "1950"]
[TimeControl "180+1"]
[EndTime "13:39:22 PST"]
[Termination "PowerThinking2650 won by resignation"]

1. e4 {[%clk 0:03:00.9]} 1... c5 {[%clk 0:02:55.3]} 2. Nf3 {[%clk 0:02:53.3]}
2... d6 {[%clk 0:02:55.6]} 3. d4 {[%clk 0:02:53.5]} 3... cxd4 {[%clk 0:02:56.5]}
4. Nxd4 {[%clk 0:02:54]} 4... g6 {[%clk 0:02:51.9]} 5. Nc3 {[%clk 0:02:54]} 5...
Bg7 {[%clk 0:02:52.5]} 6. f3 {[%clk 0:02:41.9]} 6... Nf6 {[%clk 0:02:53.4]} 7.
Be3 {[%clk 0:02:39.2]} 7... O-O {[%clk 0:02:51.5]} 8. Qd2 {[%clk 0:02:39.7]}
8... Nc6 {[%clk 0:02:48.1]} 9. O-O-O {[%clk 0:02:39.6]} 9... d5 {[%clk
0:02:48.3]} 10. Kb1 {[%clk 0:02:35.6]} 10... e5 {[%clk 0:02:24.9]} 11. Nxc6
{[%clk 0:02:32.6]} 11... bxc6 {[%clk 0:02:23.5]} 12. exd5 {[%clk 0:02:32.8]}
12... cxd5 {[%clk 0:02:22.7]} 13. Nxd5 {[%clk 0:02:33.2]} 13... Nxd5 {[%clk
0:02:22.5]} 14. Qxd5 {[%clk 0:02:33.1]} 14... Qc7 {[%clk 0:02:15.9]} 15. Qc5
{[%clk 0:02:25.5]} 15... Qb7 {[%clk 0:02:10.2]} 16. Bc4 {[%clk 0:02:23.2]} 16...
Bf5 {[%clk 0:02:07.2]} 17. Bd5 {[%clk 0:02:11.5]} 17... Qa6 {[%clk 0:01:58.2]}
18. Bxa8 {[%clk 0:02:03.6]} 18... Rc8 {[%clk 0:01:53.6]} 19. Be4 {[%clk
0:01:39.3]} 19... Be6 {[%clk 0:00:38.8]} 20. Qxa7 {[%clk 0:01:25.8]} 20... Qc4
{[%clk 0:00:28.8]} 21. b3 {[%clk 0:01:11.8]} 21... Qc3 {[%clk 0:00:19.9]} 22.
Bd2 {[%clk 0:01:04.3]} 22... Qd4 {[%clk 0:00:14.3]} 23. Qxd4 {[%clk 0:00:55.4]}
23... exd4 {[%clk 0:00:15.2]} 24. Bc1 {[%clk 0:00:52.2]} 1-0